[Event "9th Porticcio Open 2024"]
[Site "Porticcio"]
[Date "2024.07.05"]
[Round "9.9"]
[White "Daulet, Alikhan"]
[Black "Coriat, Caroline"]
[Result "0-1"]
[ECO "D00"]
[WhiteElo "1877"]
[BlackElo "1852"]
[Annotator "NA RC"]
[PlyCount "168"]
[EventDate "2024.07.01"]
[EventType "swiss"]
[EventCountry "FRA"]
[SourceTitle "playchess.com"]
[Source "ChessBase"]
[SourceQuality "1"]
[TimeControl "5400+30"]

1. d4 {[%emt 0:00:03]} d5 {[%emt 0:01:09]} 2. Nc3 {[%emt 0:00:21]} Nf6 {[%emt 0:03:38]} 3. Bf4 {[%emt 0:00:07]} c6 {[%emt 0:02:48]} 4. e3 {[%emt 0:01:51]} Bg4 {[%emt 0:02:05]} 5. f3 {[%emt 0:00:45]} Bf5 {[%emt 0:01:38]} 6. g4 {[%emt 0:00:13] D00: 1 d4 d5: Unusual lines.} Bg6 {[%emt 0:01:59]} 7. h4 {[%emt 0:00:21]} h5 {[%emt 0:01:46]} 8. g5 {[%emt 0:00:21]} Nfd7 {[%emt 0:02:57]} 9. e4 {[%emt 0:01:57]} e6 {[%emt 0:02:38]} 10. Bd3 {[%emt 0:01:21]} Bb4 {[%emt 0:06:40]} 11. exd5 {[%emt 0:02:25]} exd5 {[%emt 0:12:11]} 12. Bxg6 {[%emt 0:00:07]} fxg6 {[%emt 0:00:05]} 13. Qd3 {[%emt 0:00:22]} Qe7+ {[%emt 0:05:33]} 14. Kf2 {[%emt 0:02:08]} O-O {[%emt 0:01:08]} 15. Bxb8 {[%emt 0:00:44]} Raxb8 {[%emt 0:00:12]} 16. Qxg6 {[%emt 0:00:19]} Rbe8 {[%emt 0:02:48]} 17. Qd3 {[%emt 0:00:41]} Rf4 {[%emt 0:15:53]} 18. Nge2 {[%emt 0:02:02]} Rf7 {[%emt 0:01:21]} 19. Raf1 {[%emt 0:04:28]} Bd6 {[%emt 0:03:58]} 20. Ke1 {[%emt 0:02:44]} Qe3 {[%emt 0:04:03]} 21. Qxe3 {[%emt 0:01:19]} Rxe3 {[%emt 0:01:38]} 22. Rh3 {[%emt 0:00:19]} Bb4 {[%emt 0:08:41]} 23. Kf2 {[%emt 0:02:23]} Rfe7 {[%emt 0:01:09]} 24. Rd1 {[%emt 0:01:12]} Nb6 {[%emt 0:03:32]} 25. Rd3 {[%emt 0:01:32]} Nc4 {[%emt 0:00:44]} 26. b3 {[%emt 0:00:29]} Rxd3 {[%emt 0:00:22]} 27. cxd3 {[%emt 0:00:06]} Ne3 {[%emt 0:03:06]} 28. Nb1 {[%emt 0:06:23]} Nc2 {[%emt 0:00:50]} 29. f4 {[%emt 0:03:18]} (29. Rh1 $17) 29... g6 {[%emt 0:02:10]} 30. a3 {[%emt 0:00:40]} Be1+ {[%emt 0:01:44]} 31. Kf1 {[%emt 0:00:13]} Rf7 {[%emt 0:00:48]} 32. Rh2 {[%emt 0:02:23]} Kf8 {[%emt 0:01:00]} 33. a4 {[%emt 0:00:49]} Bb4 {[%emt 0:00:21]} 34. Rf2 {[%emt 0:00:12]} Ne3+ {[%emt 0:01:40]} 35. Kg1 {[%emt 0:00:01]} Nf5 {[%emt 0:00:43]} 36. Kh2 {[%emt 0:02:28]} Nxh4 {[%emt 0:00:17]} 37. Nbc3 {[%emt 0:01:00]} Nf5 {[%emt 0:00:23]} 38. Nd1 {[%emt 0:00:43]} Re7 {[%emt 0:00:57]} 39. Ng1 {[%emt 0:02:33]} Re1 {[%emt 0:01:05]} 40. Nb2 {[%emt 0:00:18]} Nxd4 {[%emt 0:00:38]} 41. f5 {[%emt 0:00:01]} gxf5 {[%emt 0:00:45]} 42. Nh3 {[%emt 0:00:10]} Re2 {[%emt 0:00:31]} 43. Rxe2 $19 {[%emt 0:00:00]} Nxe2 {[%emt 0:00:01]} 44. Kg2 {[%emt 0:00:24]} Bd2 {[%emt 0:00:40]} 45. Kf2 {[%emt 0:00:37]} Nf4 {[%emt 0:00:30]} 46. Ng1 {[%emt 0:00:05]} Bc1 {[%emt 0:00:17]} 47. Nd1 {[%emt 0:00:08]} Nxd3+ {[%emt 0:00:15]} 48. Ke2 {[%emt 0:00:05]} Nc5 {[%emt 0:00:32]} 49. Nf3 {[%emt 0:00:08]} Nxb3 {[%emt 0:00:40]} 50. Nf2 {[%emt 0:00:09]} Nc5 {[%emt 0:00:43]} 51. a5 {[%emt 0:00:20]} Ne4 {[%emt 0:00:24]} 52. Nh3 {[%emt 0:00:02]} b6 {[%emt 0:01:12]} 53. a6 {[%emt 0:00:11]} Nc5 {[%emt 0:00:16]} 54. Nd4 {[%emt 0:00:03]} Nxa6 {[%emt 0:00:28]} 55. Nxc6 {[%emt 0:00:01]} Nc5 {[%emt 0:04:28]} 56. Nxa7 {[%emt 0:00:19]} Ne4 {[%emt 0:00:00]} 57. g6 {[%emt 0:00:05]} Kg7 {[%emt 0:00:00]} 58. Nc8 {[%emt 0:00:01]} Kxg6 {[%emt 0:00:00]} 59. Ne7+ {[%emt 0:00:11]} Kf7 {[%emt 0:00:00]} 60. Nxd5 {[%emt 0:00:18]} b5 {[%emt 0:00:00]} 61. Kd3 {[%emt 0:00:03]} Bd2 {[%emt 0:00:00]} 62. Kd4 {[%emt 0:00:48]} b4 {[%emt 0:00:00]} 63. Nxb4 {[%emt 0:02:46]} Bxb4 {[%emt 0:00:00]} 64. Ke5 {[%emt 0:00:03]} Ng3 {[%emt 0:00:14]} 65. Kf4 {[%emt 0:00:26]} h4 {[%emt 0:01:21]} 66. Kf3 {[%emt 0:01:07]} Bd2 {[%emt 0:01:01]} 67. Nf2 {[%emt 0:00:09]} Be1 {[%emt 0:00:45]} 68. Nh3 {[%emt 0:00:20]} Kf6 {[%emt 0:00:17]} 69. Kg2 {[%emt 0:00:07]} Bd2 {[%emt 0:00:31]} 70. Ng1 {[%emt 0:00:05]} Nh5 {[%emt 0:00:59]} 71. Nf3 {[%emt 0:00:09]} Bg5 {[%emt 0:00:17]} 72. Kh3 {[%emt 0:00:23]} Nf4+ {[%emt 0:00:16]} 73. Kh2 {[%emt 0:00:01]} Ng6 {[%emt 0:01:00]} 74. Kh3 {[%emt 0:00:16]} Ne5 {[%emt 0:00:11]} 75. Ng1 {[%emt 0:00:22]} f4 {[%emt 0:00:18]} 76. Kg2 {[%emt 0:00:32]} Kf5 {[%emt 0:00:24]} 77. Nh3 {[%emt 0:00:09]} f3+ {[%emt 0:00:41]} 78. Kh1 {[%emt 0:00:00]} Kg4 {[%emt 0:00:14]} 79. Nf2+ {[%emt 0:00:05]} Kf4 {[%emt 0:00:59]} 80. Nh3+ {[%emt 0:01:17]} Ke3 {[%emt 0:00:47]} 81. Kg1 {[%emt 0:00:23]} Ke2 {[%emt 0:00:16]} 82. Nxg5 {[%emt 0:02:05]} f2+ {[%emt 0:00:06]} 83. Kh2 {[%emt 0:00:04]} Nf3+ {[%emt 0:00:47]} 84. Nxf3 {[%emt 0:00:33]} Kxf3 {[%emt 0:03:06]} 0-1

[Event "9th Porticcio Open 2024"]
[Site "Porticcio"]
[Date "2024.07.05"]
[Round "9.10"]
[White "Deladerriere, Helio"]
[Black "Grisoni, Emma"]
[Result "1-0"]
[ECO "A47"]
[WhiteElo "1850"]
[BlackElo "1746"]
[Annotator "NA RC"]
[PlyCount "57"]
[EventDate "2024.07.01"]
[EventType "swiss"]
[EventCountry "FRA"]
[SourceTitle "playchess.com"]
[Source "ChessBase"]
[SourceQuality "1"]
[TimeControl "5400+30"]

1. d4 {[%emt 0:00:57]} Nf6 {[%emt 0:00:05]} 2. Nf3 {[%emt 0:00:08]} e6 {[%emt 0:00:11]} 3. e3 {[%emt 0:00:07]} b6 {[%emt 0:00:22]} 4. Bd3 {[%emt 0:01:20]} Bb7 {[%emt 0:00:04]} 5. Nbd2 {[%emt 0:00:33]} Be7 {[%emt 0:00:13]} 6. O-O {[%emt 0:02:07]} d6 {[%emt 0:00:55]} 7. b3 {[%emt 0:00:58]} Nfd7 {[%emt 0:01:41]} 8. Bb2 {[%emt 0:00:35]} O-O {[%emt 0:02:32]} 9. e4 {[%emt 0:02:12]} Nc6 {[%emt 0:01:35]} 10. a3 {[%emt 0:00:37]} e5 {[%emt 0:09:36]} 11. d5 {[%emt 0:02:03]} Ncb8 {[%emt 0:00:06]} 12. Re1 {[%emt 0:01:07]} g6 {[%emt 0:03:29]} 13. c4 $14 {[%emt 0:12:41]} Nc5 {[%emt 0:03:33]} 14. Bc2 {[%emt 0:00:09]} Bc8 {[%emt 0:04:57]} 15. b4 {[%emt 0:06:22]} Nb7 {[%emt 0:01:26]} 16. Nb3 {[%emt 0:04:36]} Nd7 {[%emt 0:04:51]} 17. Nfd2 {[%emt 0:01:35]} Qe8 {[%emt 0:05:19]} 18. Rf1 {[%emt 0:02:18]} f5 {[%emt 0:08:02]} 19. f4 {[%emt 0:02:32]} exf4 {[%emt 0:06:36]} 20. exf5 {[%emt 0:00:45]} g5 {[%emt 0:05:47]} 21. Re1 {[%emt 0:04:22]} Ne5 {[%emt 0:03:37]} 22. Nd4 {[%emt 0:03:48]} Qd7 {[%emt 0:09:39]} 23. Ne6 {[%emt 0:01:58]} Rf7 {[%emt 0:00:11]} 24. Ba4 {[%emt 0:03:24]} c6 {[%emt 0:00:52]} 25. dxc6 {[%emt 0:00:21]} Nxc6 {[%emt 0:00:11]} 26. Kh1 {[%emt 0:04:36]} Nbd8 {[%emt 0:05:41]} 27. Ne4 {[%emt 0:06:16]} Rxf5 {[%emt 0:06:02]} 28. Nxd8 {[%emt 0:03:38]} Bxd8 {[%emt 0:00:15]} 29. Nxd6 {[%emt 0:00:42]} 1-0